[Event "EYCC Girls-U12 2019"]
[Site "Bratislava"]
[Date "2019.08.09"]
[Round "8.17"]
[White "Budagova, Leyla"]
[Black "Korovina, Yana"]
[Result "0-1"]
[ECO "C42"]
[WhiteElo "1442"]
[BlackElo "1602"]
[Annotator "NA"]
[PlyCount "74"]
[EventDate "2019.08.02"]
[EventType "swiss"]
[EventCountry "SVK"]
[SourceTitle "playchess.com"]
[Source "ChessBase"]
[SourceQuality "1"]
[TimeControl "40/5400+30:1800+30"]

1. e4 {[%emt 0:00:00]} e5 {[%emt 0:00:00]} 2. Nf3 {[%emt 0:00:00]} Nf6 {[%emt 0:00:05]} 3. Nxe5 {[%emt 0:00:00]} d6 {[%emt 0:00:23]} 4. Nf3 {[%emt 0:00:00]} Nxe4 {[%emt 0:00:28]} 5. Nc3 {[%emt 0:00:38]} Nxc3 {[%emt 0:00:40]} 6. dxc3 {[%emt 0:00:15]} Be7 {[%emt 0:00:12]} 7. Bd3 {[%emt 0:00:28]} Nc6 {[%emt 0:00:17]} 8. O-O {[%emt 0:00:21]} O-O {[%emt 0:00:54]} 9. h3 {[%emt 0:00:37]} Be6 {[%emt 0:01:08]} 10. Be3 {[%emt 0:04:14]} Qd7 {[%emt 0:06:21]} 11. Nd4 {[%emt 0:05:22]} Nxd4 {[%emt 0:05:52]} 12. Bxd4 {[%emt 0:00:10]} Bf5 {[%emt 0:03:14]} 13. Be2 {[%emt 0:07:32]} Bg5 {[%emt 0:03:27]} 14. f4 {[%emt 0:03:29]} Be7 {[%emt 0:02:40]} 15. Bf3 {[%emt 0:04:33]} c6 {[%emt 0:12:36]} 16. g4 {[%emt 0:05:47]} Be6 {[%emt 0:00:28]} 17. f5 {[%emt 0:02:13]} Bc4 {[%emt 0:00:14]} 18. Rf2 {[%emt 0:02:42]} Bg5 {[%emt 0:05:11]} 19. b3 {[%emt 0:10:45]} Ba6 {[%emt 0:00:39]} 20. c4 {[%emt 0:06:41]} Rac8 {[%emt 0:04:06]} 21. Rh2 {[%emt 0:04:59]} Rfe8 {[%emt 0:03:48]} 22. Bb2 {[%emt 0:01:57]} Qc7 {[%emt 0:03:30]} 23. h4 {[%emt 0:02:47]} Bf4 {[%emt 0:02:11]} 24. Rg2 {[%emt 0:01:40]} Qe7 {[%emt 0:08:35]} 25. g5 {[%emt 0:02:59]} Qe3+ {[%emt 0:01:14]} 26. Kh1 {[%emt 0:00:36]} Be5 {[%emt 0:00:57]} 27. Bxe5 {[%emt 0:06:37]} Qxe5 {[%emt 0:00:49]} 28. Rb1 {[%emt 0:00:58]} Rcd8 {[%emt 0:05:46]} 29. f6 {[%emt 0:04:42]} g6 {[%emt 0:03:20]} 30. h5 {[%emt 0:02:19]} Qf4 {[%emt 0:01:57]} 31. hxg6 {[%emt 0:01:32]} hxg6 {[%emt 0:01:13]} 32. Rg4 {[%emt 0:00:37]} Qf5 {[%emt 0:01:43]} 33. Rg2 {[%emt 0:08:05]} Re3 {[%emt 0:01:35]} 34. Rg3 {[%emt 0:01:26]} Rde8 {[%emt 0:01:27]} 35. Rc1 {[%emt 0:04:41]} d5 {[%emt 0:02:06]} 36. cxd5 {[%emt 0:02:24]} Be2 {[%emt 0:00:26]} 37. Bxe2 {[%emt 0:02:02]} Rxg3 {[%emt 0:00:14]} 0-1

[Event "EYCC Girls-U12 2019"]
[Site "Bratislava"]
[Date "2019.08.09"]
[Round "8.18"]
[White "Darmaeva, Nomina"]
[Black "Tsirekidze, Barbare"]
[Result "0-1"]
[ECO "C10"]
[WhiteElo "1408"]
[BlackElo "1527"]
[Annotator "NA"]
[PlyCount "86"]
[EventDate "2019.08.02"]
[EventType "swiss"]
[EventCountry "SVK"]
[SourceTitle "playchess.com"]
[Source "ChessBase"]
[SourceQuality "1"]
[TimeControl "40/5400+30:1800+30"]

1. e4 {[%emt 0:00:00]} e6 {[%emt 0:00:00]} 2. d4 {[%emt 0:00:00]} d5 {[%emt 0:00:00]} 3. Nc3 {[%emt 0:00:08]} dxe4 {[%emt 0:00:23]} 4. Nxe4 {[%emt 0:00:12]} Nd7 {[%emt 0:00:08]} 5. Nf3 {[%emt 0:00:29]} Ngf6 {[%emt 0:00:11]} 6. Nxf6+ {[%emt 0:00:30]} Nxf6 {[%emt 0:00:12]} 7. Bd3 {[%emt 0:00:47]} Be7 {[%emt 0:01:01]} 8. O-O {[%emt 0:03:47]} O-O {[%emt 0:01:02]} 9. c3 {[%emt 0:03:03]} b6 {[%emt 0:01:05]} 10. Re1 {[%emt 0:05:42]} Bb7 {[%emt 0:00:17]} 11. Qe2 {[%emt 0:11:33]} c5 {[%emt 0:09:18]} 12. dxc5 {[%emt 0:07:09]} Bxc5 {[%emt 0:00:13]} 13. Bg5 {[%emt 0:01:50]} h6 {[%emt 0:02:08]} 14. Bh4 {[%emt 0:03:09]} Be7 {[%emt 0:20:22]} 15. Rad1 {[%emt 0:02:20]} Qc8 {[%emt 0:04:30]} 16. Ne5 {[%emt 0:05:03]} Rd8 {[%emt 0:19:28]} 17. h3 {[%emt 0:20:17]} a6 {[%emt 0:14:35]} 18. a4 {[%emt 0:04:36]} Nd5 {[%emt 0:11:05]} 19. Bxe7 {[%emt 0:07:17]} Nxe7 {[%emt 0:00:29]} 20. Qh5 {[%emt 0:01:18]} Rf8 {[%emt 0:09:30]} 21. Re3 {[%emt 0:02:56]} Nf5 {[%emt 0:01:27]} 22. Bxf5 {[%emt 0:00:52]} exf5 {[%emt 0:00:04]} 23. Rg3 {[%emt 0:00:22]} Qe6 {[%emt 0:01:13]} 24. Re1 {[%emt 0:02:08]} Be4 {[%emt 0:01:50]} 25. Nd3 {[%emt 0:03:01]} Qd6 {[%emt 0:00:21]} 26. Nc1 {[%emt 0:03:01]} f4 {[%emt 0:00:48]} 27. Rg4 {[%emt 0:01:23]} Bg6 {[%emt 0:00:49]} 28. Qe5 {[%emt 0:01:23]} Qxe5 {[%emt 0:00:07]} 29. Rxe5 {[%emt 0:00:04]} Rfe8 {[%emt 0:00:04]} 30. Rxe8+ {[%emt 0:02:13]} Rxe8 {[%emt 0:00:02]} 31. Na2 {[%emt 0:05:23]} Bb1 {[%emt 0:01:06]} 32. Nb4 {[%emt 0:00:20]} g5 {[%emt 0:00:23]} 33. Nd5 {[%emt 0:00:46]} Re1+ {[%emt 0:00:30]} 34. Kh2 {[%emt 0:00:06]} f5 {[%emt 0:00:36]} 35. Rxf4 {[%emt 0:01:56]} gxf4 {[%emt 0:00:06]} 36. Nxf4 {[%emt 0:00:02]} Bc2 {[%emt 0:01:26]} 37. Nd5 {[%emt 0:00:24]} Bxa4 {[%emt 0:00:31]} 38. Nxb6 {[%emt 0:00:05]} Bc6 {[%emt 0:00:31]} 39. Nc8 {[%emt 0:00:53]} Kg7 {[%emt 0:00:39]} 40. Nd6 {[%emt 0:00:00]} Kf6 {[%emt 0:00:00]} 41. Nc4 {[%emt 0:00:30]} Re2 {[%emt 0:02:39]} 42. Kg3 {[%emt 0:00:04]} Bb5 {[%emt 0:01:07]} 43. Ne3 {[%emt 0:00:19]} Rxb2 {[%emt 0:00:44]} 0-1

[Event "EYCC Girls-U12 2019"]
[Site "Bratislava"]
[Date "2019.08.09"]
[Round "8.19"]
[White "Chicarosie, Ioana-Bianca"]
[Black "Khegai, Darya"]
[Result "1-0"]
[ECO "A46"]
[WhiteElo "1580"]
[BlackElo "1402"]
[Annotator "NA"]
[PlyCount "53"]
[EventDate "2019.08.02"]
[EventType "swiss"]
[EventCountry "SVK"]
[SourceTitle "playchess.com"]
[Source "ChessBase"]
[SourceQuality "1"]
[TimeControl "40/5400+30:1800+30"]

1. d4 {[%emt 0:00:00]} Nf6 {[%emt 0:00:00]} 2. Nf3 {[%emt 0:00:00]} e6 {[%emt 0:00:57]} 3. Nbd2 {[%emt 0:00:00]} c5 {[%emt 0:09:23]} 4. c3 {[%emt 0:01:37]} Nc6 {[%emt 0:04:01]} 5. e3 {[%emt 0:05:13]} Be7 {[%emt 0:04:59]} 6. Bd3 {[%emt 0:00:49]} b6 {[%emt 0:00:45]} 7. O-O {[%emt 0:01:39]} Bb7 {[%emt 0:00:38]} 8. Re1 {[%emt 0:00:25]} O-O {[%emt 0:02:23]} 9. e4 {[%emt 0:01:12]} cxd4 {[%emt 0:03:51]} 10. cxd4 {[%emt 0:00:21]} d6 {[%emt 0:00:07]} 11. Nf1 {[%emt 0:07:07]} Rc8 {[%emt 0:04:04]} 12. Bd2 {[%emt 0:00:47]} Rc7 {[%emt 0:08:00]} 13. Qe2 {[%emt 0:00:46]} Qd7 {[%emt 0:02:07]} 14. Rac1 {[%emt 0:02:55]} Rfc8 {[%emt 0:00:15]} 15. Ng3 {[%emt 0:01:43]} Bf8 {[%emt 0:03:01]} 16. e5 {[%emt 0:15:39]} dxe5 {[%emt 0:00:53]} 17. dxe5 {[%emt 0:00:19]} Nd5 {[%emt 0:00:25]} 18. Bxh7+ {[%emt 0:09:02]} Kxh7 {[%emt 0:06:53]} 19. Ng5+ {[%emt 0:00:13]} Kg8 {[%emt 0:00:05]} 20. Qh5 {[%emt 0:01:15]} Bb4 {[%emt 0:02:41]} 21. Qh7+ {[%emt 0:05:55]} Kf8 {[%emt 0:01:33]} 22. Nh5 {[%emt 0:04:01]} Nxe5 {[%emt 0:05:55]} 23. Bxb4+ {[%emt 0:00:55]} Nxb4 {[%emt 0:00:20]} 24. Qxg7+ {[%emt 0:01:01]} Ke7 {[%emt 0:01:04]} 25. Qf6+ {[%emt 0:03:30]} Kf8 {[%emt 0:00:57]} 26. Nh7+ {[%emt 0:00:16]} Ke8 {[%emt 0:02:06]} 27. Ng7# {[%emt 0:00:08]} 1-0

[Event "EYCC Girls-U12 2019"]
[Site "Bratislava"]
[Date "2019.08.09"]
[Round "8.20"]
[White "Lapushnian, Maya"]
[Black "Berezovsky, Fiorina"]
[Result "0-1"]
[ECO "B22"]
[WhiteElo "1360"]
[BlackElo "1591"]
[Annotator "NA"]
[PlyCount "76"]
[EventDate "2019.08.02"]
[EventType "swiss"]
[EventCountry "SVK"]
[SourceTitle "playchess.com"]
[Source "ChessBase"]
[SourceQuality "1"]
[TimeControl "40/5400+30:1800+30"]

1. e4 {[%emt 0:00:00]} c5 {[%emt 0:00:00]} 2. c3 {[%emt 0:00:00]} d5 {[%emt 0:02:43]} 3. exd5 {[%emt 0:00:00]} Qxd5 {[%emt 0:00:15]} 4. d4 {[%emt 0:00:00]} e6 {[%emt 0:02:25]} 5. Nf3 {[%emt 0:00:00]} Nf6 {[%emt 0:01:29]} 6. Bd3 {[%emt 0:00:00]} cxd4 {[%emt 0:04:49]} 7. cxd4 {[%emt 0:00:26]} Nc6 {[%emt 0:01:34]} 8. O-O {[%emt 0:00:28]} Be7 {[%emt 0:01:25]} 9. Nc3 {[%emt 0:01:51]} Qd8 {[%emt 0:01:24]} 10. h3 {[%emt 0:02:31]} O-O {[%emt 0:01:28]} 11. Be3 {[%emt 0:00:32]} Nb4 {[%emt 0:01:23]} 12. Bb1 {[%emt 0:06:50]} b6 {[%emt 0:03:52]} 13. a3 {[%emt 0:03:04]} Nbd5 {[%emt 0:03:15]} 14. Nxd5 {[%emt 0:00:32]} Qxd5 {[%emt 0:01:52]} 15. Qd3 {[%emt 0:00:35]} h6 {[%emt 0:05:45]} 16. Bf4 {[%emt 0:06:15]} a5 {[%emt 0:06:22]} 17. Be5 {[%emt 0:01:30]} Ba6 {[%emt 0:00:55]} 18. Qd1 {[%emt 0:14:10]} Bxf1 {[%emt 0:01:43]} 19. Qxf1 {[%emt 0:00:14]} Ne4 {[%emt 0:03:48]} 20. Qe2 {[%emt 0:02:01]} Nd6 {[%emt 0:08:28]} 21. Qd3 {[%emt 0:05:38]} g6 {[%emt 0:08:46]} 22. Qe3 {[%emt 0:14:39]} Kh7 {[%emt 0:06:21]} 23. Bf4 {[%emt 0:05:06]} Nc4 {[%emt 0:11:27]} 24. Qe2 {[%emt 0:05:50]} Rac8 {[%emt 0:04:35]} 25. Ba2 {[%emt 0:05:47]} Qb5 {[%emt 0:01:16]} 26. Rd1 {[%emt 0:04:49]} Nxa3 {[%emt 0:03:24]} 27. Qe4 {[%emt 0:10:29]} Qxb2 {[%emt 0:01:41]} 28. Bxe6 {[%emt 0:02:27]} fxe6 {[%emt 0:02:12]} 29. Qxe6 {[%emt 0:00:10]} Qb4 {[%emt 0:01:29]} 30. Re1 {[%emt 0:00:52]} Rce8 {[%emt 0:01:59]} 31. Qd7 {[%emt 0:01:07]} Nb5 {[%emt 0:02:09]} 32. Re6 {[%emt 0:01:15]} a4 {[%emt 0:02:03]} 33. Bd2 {[%emt 0:02:15]} Qb1+ {[%emt 0:01:00]} 34. Kh2 {[%emt 0:00:33]} Qf5 {[%emt 0:01:23]} 35. Rxe7+ {[%emt 0:00:24]} Rxe7 {[%emt 0:00:04]} 36. Qxe7+ {[%emt 0:00:07]} Rf7 {[%emt 0:00:05]} 37. Qb4 {[%emt 0:00:37]} a3 {[%emt 0:00:10]} 38. Ne5 {[%emt 0:01:16]} a2 0-1

[Event "EYCC Girls-U12 2019"]
[Site "Bratislava"]
[Date "2019.08.09"]
[Round "8.21"]
[White "Lomakina, Anzhelika"]
[Black "Koniadze, Lizi"]
[Result "1-0"]
[ECO "B01"]
[WhiteElo "1752"]
[BlackElo "1283"]
[Annotator "NA"]
[PlyCount "105"]
[EventDate "2019.08.02"]
[EventType "swiss"]
[EventCountry "SVK"]
[SourceTitle "playchess.com"]
[Source "ChessBase"]
[SourceQuality "1"]
[TimeControl "40/5400+30:1800+30"]

1. e4 {[%emt 0:00:00]} d5 {[%emt 0:00:00]} 2. exd5 {[%emt 0:00:00]} Qxd5 {[%emt 0:00:00]} 3. Nc3 {[%emt 0:00:00]} Qa5 {[%emt 0:00:19]} 4. d4 {[%emt 0:00:00]} Nf6 {[%emt 0:00:54]} 5. Nf3 {[%emt 0:00:00]} Bg4 {[%emt 0:00:50]} 6. h3 {[%emt 0:06:49]} Bh5 {[%emt 0:00:38]} 7. g4 {[%emt 0:01:33]} Bg6 {[%emt 0:00:57]} 8. Ne5 {[%emt 0:00:51]} e6 {[%emt 0:04:59]} 9. Nxg6 {[%emt 0:10:09]} hxg6 {[%emt 0:00:20]} 10. Qf3 {[%emt 0:01:07]} c6 {[%emt 0:06:35]} 11. Bd2 {[%emt 0:16:41]} Nbd7 {[%emt 0:06:01]} 12. O-O-O {[%emt 0:02:52]} Be7 {[%emt 0:10:12]} 13. Bc4 {[%emt 0:02:02]} Qc7 {[%emt 0:15:19]} 14. Rhe1 {[%emt 0:03:04]} Nb6 {[%emt 0:02:14]} 15. Bb3 {[%emt 0:01:39]} Bd6 {[%emt 0:01:01]} 16. Bg5 {[%emt 0:19:04]} O-O-O {[%emt 0:05:41]} 17. Kb1 {[%emt 0:02:37]} Rh7 {[%emt 0:07:13]} 18. a3 {[%emt 0:06:38]} Rdh8 {[%emt 0:02:10]} 19. Rd3 {[%emt 0:03:40]} a6 {[%emt 0:08:48]} 20. Bxf6 {[%emt 0:07:10]} gxf6 {[%emt 0:00:22]} 21. Qxf6 {[%emt 0:00:24]} Rxh3 {[%emt 0:00:49]} 22. Ne4 {[%emt 0:00:33]} Bf4 {[%emt 0:04:22]} 23. Nc5 {[%emt 0:03:25]} Nd5 {[%emt 0:04:22]} 24. Bxd5 {[%emt 0:00:47]} cxd5 {[%emt 0:00:14]} 25. Nxe6 {[%emt 0:03:49]} fxe6 {[%emt 0:01:09]} 26. Rc3 {[%emt 0:00:42]} Rxc3 {[%emt 0:01:19]} 27. Qxh8+ {[%emt 0:00:09]} Qd8 {[%emt 0:00:39]} 28. Qxd8+ {[%emt 0:00:11]} Kxd8 {[%emt 0:00:10]} 29. bxc3 {[%emt 0:00:05]} Kd7 {[%emt 0:00:27]} 30. Kb2 {[%emt 0:00:17]} Kd6 {[%emt 0:00:49]} 31. Kb3 {[%emt 0:00:54]} g5 {[%emt 0:00:20]} 32. c4 {[%emt 0:00:46]} dxc4+ {[%emt 0:00:11]} 33. Kxc4 {[%emt 0:00:11]} b5+ {[%emt 0:00:11]} 34. Kd3 {[%emt 0:02:23]} Kd5 {[%emt 0:00:34]} 35. a4 {[%emt 0:00:45]} Bc7 {[%emt 0:00:31]} 36. axb5 {[%emt 0:00:44]} axb5 {[%emt 0:00:18]} 37. Rh1 {[%emt 0:02:00]} Bf4 {[%emt 0:00:37]} 38. Rh8 {[%emt 0:00:40]} Kc6 {[%emt 0:00:27]} 39. Ke4 {[%emt 0:01:17]} Kd6 {[%emt 0:00:26]} 40. Rf8 {[%emt 0:00:00]} Bh2 {[%emt 0:00:00]} 41. Rb8 {[%emt 0:08:15]} Kc6 {[%emt 0:02:16]} 42. Rc8+ {[%emt 0:00:41]} Kb6 {[%emt 0:00:25]} 43. Re8 {[%emt 0:00:18]} Bf4 {[%emt 0:00:18]} 44. Rxe6+ {[%emt 0:00:08]} Kc7 {[%emt 0:00:16]} 45. Kf5 {[%emt 0:01:33]} Bd2 {[%emt 0:00:26]} 46. d5 {[%emt 0:00:41]} Bf4 {[%emt 0:00:10]} 47. Rg6 {[%emt 0:00:31]} b4 {[%emt 0:00:10]} 48. Rxg5 {[%emt 0:01:30]} Bxg5 {[%emt 0:00:11]} 49. Kxg5 {[%emt 0:00:03]} Kd6 {[%emt 0:00:12]} 50. Kf6 {[%emt 0:00:30]} Kxd5 {[%emt 0:00:11]} 51. g5 {[%emt 0:00:03]} Kc4 {[%emt 0:00:13]} 52. g6 {[%emt 0:00:03]} Kc3 {[%emt 0:00:12]} 53. g7 {[%emt 0:00:07]} 1-0

[Event "EYCC Girls-U12 2019"]
[Site "Bratislava"]
[Date "2019.08.09"]
[Round "8.22"]
[White "Mosurovic, Milena"]
[Black "Kapicakova, Lucia"]
[Result "0-1"]
[ECO "B13"]
[WhiteElo "1445"]
[BlackElo "1671"]
[Annotator "NA"]
[PlyCount "74"]
[EventDate "2019.08.02"]
[EventType "swiss"]
[EventCountry "SVK"]
[SourceTitle "playchess.com"]
[Source "ChessBase"]
[SourceQuality "1"]
[TimeControl "40/5400+30:1800+30"]

1. e4 {[%emt 0:00:00]} c6 {[%emt 0:00:00]} 2. d4 {[%emt 0:00:00]} d5 {[%emt 0:00:00]} 3. exd5 {[%emt 0:00:00]} cxd5 {[%emt 0:00:00]} 4. Bd3 {[%emt 0:00:00]} Nc6 {[%emt 0:00:02]} 5. c3 {[%emt 0:00:00]} Nf6 {[%emt 0:00:16]} 6. Nf3 {[%emt 0:00:17]} Bg4 {[%emt 0:00:27]} 7. Bf4 {[%emt 0:00:10]} e6 {[%emt 0:00:41]} 8. Nbd2 {[%emt 0:00:18]} Bd6 {[%emt 0:01:16]} 9. Bxd6 {[%emt 0:01:53]} Qxd6 {[%emt 0:00:09]} 10. Qa4 {[%emt 0:09:52]} a6 {[%emt 0:03:55]} 11. O-O {[%emt 0:01:10]} O-O {[%emt 0:00:50]} 12. Rfe1 {[%emt 0:05:03]} b5 {[%emt 0:03:30]} 13. Qc2 {[%emt 0:00:28]} Bxf3 {[%emt 0:04:05]} 14. Nxf3 {[%emt 0:00:09]} h6 {[%emt 0:01:17]} 15. Qe2 {[%emt 0:03:06]} Rfc8 {[%emt 0:10:43]} 16. Ne5 {[%emt 0:03:18]} Na5 {[%emt 0:03:25]} 17. f4 {[%emt 0:04:47]} b4 {[%emt 0:04:01]} 18. cxb4 {[%emt 0:03:39]} Qxb4 {[%emt 0:00:53]} 19. Qf2 {[%emt 0:04:37]} Nc6 {[%emt 0:07:31]} 20. Rec1 {[%emt 0:08:39]} Nxd4 {[%emt 0:09:27]} 21. Bxa6 {[%emt 0:18:21]} Rxc1+ {[%emt 0:04:57]} 22. Rxc1 {[%emt 0:00:05]} Rxa6 {[%emt 0:00:55]} 23. Rc8+ {[%emt 0:00:24]} Kh7 {[%emt 0:00:49]} 24. Nxf7 {[%emt 0:00:30]} Ng8 {[%emt 0:03:06]} 25. Qf1 {[%emt 0:08:59]} Qb5 {[%emt 0:12:51]} 26. Qb1+ {[%emt 0:00:34]} Nf5 {[%emt 0:09:36]} 27. g4 {[%emt 0:00:31]} Qd7 {[%emt 0:01:35]} 28. Rd8 {[%emt 0:05:42]} Qxf7 {[%emt 0:01:16]} 29. gxf5 {[%emt 0:00:29]} exf5 {[%emt 0:04:09]} 30. Qd3 {[%emt 0:00:43]} Qg6+ {[%emt 0:07:19]} 31. Kf1 {[%emt 0:04:22]} Rxa2 {[%emt 0:03:13]} 32. Qxd5 {[%emt 0:00:11]} Ra1+ {[%emt 0:00:32]} 33. Ke2 {[%emt 0:00:19]} Qa6+ {[%emt 0:00:54]} 34. Kf2 {[%emt 0:01:43]} Qf1+ {[%emt 0:02:18]} 35. Kg3 {[%emt 0:01:04]} Qg1+ {[%emt 0:00:31]} 36. Qg2 {[%emt 0:01:22]} Qe3+ {[%emt 0:00:25]} 37. Kh4 {[%emt 0:00:32]} Qe7+ {[%emt 0:00:21]} 0-1

[Event "EYCC Girls-U12 2019"]
[Site "Bratislava"]
[Date "2019.08.09"]
[Round "8.23"]
[White "Shukurova, Aydan"]
[Black "Kalenichenko, Alina"]
[Result "1/2-1/2"]
[ECO "A45"]
[WhiteElo "1372"]
[BlackElo "1549"]
[Annotator "NA"]
[PlyCount "85"]
[EventDate "2019.08.02"]
[EventType "swiss"]
[EventCountry "SVK"]
[SourceTitle "playchess.com"]
[Source "ChessBase"]
[SourceQuality "1"]
[TimeControl "40/5400+30:1800+30"]

1. d4 {[%emt 0:00:00]} Nf6 {[%emt 0:00:00]} 2. Bf4 {[%emt 0:00:23]} g6 {[%emt 0:00:00]} 3. Nc3 {[%emt 0:00:09]} d5 {[%emt 0:00:16]} 4. e3 {[%emt 0:00:14]} Bg7 {[%emt 0:00:09]} 5. h4 {[%emt 0:00:05]} c5 {[%emt 0:00:15]} 6. Be2 {[%emt 0:01:30]} h5 {[%emt 0:00:19]} 7. Nf3 {[%emt 0:00:16]} Nc6 {[%emt 0:00:28]} 8. Ne5 {[%emt 0:02:19]} cxd4 {[%emt 0:07:56]} 9. exd4 {[%emt 0:06:05]} Qb6 {[%emt 0:00:23]} 10. Bb5 {[%emt 0:04:23]} O-O {[%emt 0:00:15]} 11. Bxc6 {[%emt 0:03:12]} bxc6 {[%emt 0:00:12]} 12. Rb1 {[%emt 0:00:23]} Ba6 {[%emt 0:01:20]} 13. Na4 {[%emt 0:01:01]} Qa5+ {[%emt 0:03:43]} 14. c3 {[%emt 0:00:14]} Bb5 {[%emt 0:01:17]} 15. Nc5 {[%emt 0:00:38]} Qxa2 {[%emt 0:07:23]} 16. Ncd3 {[%emt 0:05:09]} Qa5 {[%emt 0:03:37]} 17. O-O {[%emt 0:00:12]} Ne4 {[%emt 0:02:00]} 18. Ra1 {[%emt 0:00:45]} Qd8 {[%emt 0:00:19]} 19. f3 {[%emt 0:00:19]} Nd6 {[%emt 0:00:35]} 20. Re1 {[%emt 0:00:47]} Nc4 {[%emt 0:03:30]} 21. b3 {[%emt 0:00:53]} Nxe5 {[%emt 0:00:27]} 22. Nxe5 {[%emt 0:00:37]} a5 {[%emt 0:03:43]} 23. Qd2 {[%emt 0:02:16]} Rc8 {[%emt 0:15:14]} 24. Ra2 {[%emt 0:05:40]} c5 {[%emt 0:02:02]} 25. Rea1 {[%emt 0:01:06]} cxd4 {[%emt 0:02:38]} 26. cxd4 {[%emt 0:00:08]} e6 {[%emt 0:04:23]} 27. g3 {[%emt 0:01:03]} Qb6 {[%emt 0:02:32]} 28. Rxa5 {[%emt 0:00:59]} Bc6 {[%emt 0:01:10]} 29. b4 {[%emt 0:01:05]} Ra8 {[%emt 0:01:26]} 30. Rxa8 {[%emt 0:00:41]} Rxa8 {[%emt 0:00:14]} 31. Rxa8+ {[%emt 0:02:01]} Bxa8 {[%emt 0:00:06]} 32. Qc3 {[%emt 0:00:10]} Bb7 {[%emt 0:01:39]} 33. Qc5 {[%emt 0:01:40]} Qxc5 {[%emt 0:03:47]} 34. bxc5 {[%emt 0:00:11]} Bxe5 {[%emt 0:00:52]} 35. Bxe5 {[%emt 0:00:06]} Kf8 {[%emt 0:00:14]} 36. Kf2 {[%emt 0:00:08]} Ke7 {[%emt 0:00:04]} 37. Bd6+ {[%emt 0:00:22]} Kd7 {[%emt 0:00:05]} 38. Be5 {[%emt 0:00:08]} Ba6 {[%emt 0:00:14]} 39. Ke3 {[%emt 0:00:13]} Bb5 {[%emt 0:00:22]} 40. Kf2 {[%emt 0:00:00]} Ke7 {[%emt 0:00:00]} 41. Bd6+ {[%emt 0:00:34]} Kf6 42. Be5+ Kf5 43. Ke3 {Kxe5 Ke4+} 1/2-1/2

[Event "EYCC Girls-U12 2019"]
[Site "Bratislava"]
[Date "2019.08.09"]
[Round "8.24"]
[White "Mikhailina, Olga"]
[Black "Helliesen, Lykke-Merlot"]
[Result "0-1"]
[ECO "C77"]
[WhiteElo "1410"]
[BlackElo "1505"]
[Annotator "NA"]
[PlyCount "168"]
[EventDate "2019.08.02"]
[EventType "swiss"]
[EventCountry "SVK"]
[SourceTitle "playchess.com"]
[Source "ChessBase"]
[SourceQuality "1"]
[TimeControl "40/5400+30:1800+30"]

1. e4 {[%emt 0:00:00]} e5 {[%emt 0:00:00]} 2. Nf3 {[%emt 0:00:00]} Nc6 {[%emt 0:00:00]} 3. Bb5 {[%emt 0:00:00]} a6 {[%emt 0:00:03]} 4. Ba4 {[%emt 0:00:00]} Nf6 {[%emt 0:00:20]} 5. d3 {[%emt 0:02:18]} b5 {[%emt 0:02:23]} 6. Bb3 {[%emt 0:00:09]} d6 {[%emt 0:01:28]} 7. c3 {[%emt 0:05:53]} Bg4 {[%emt 0:02:38]} 8. Nbd2 {[%emt 0:08:36]} d5 {[%emt 0:11:43]} 9. exd5 {[%emt 0:00:19]} Nxd5 {[%emt 0:00:22]} 10. h3 {[%emt 0:07:26]} Bh5 {[%emt 0:03:56]} 11. Ne4 {[%emt 0:06:27]} Bg6 {[%emt 0:12:10]} 12. O-O {[%emt 0:25:45]} Nb6 {[%emt 0:18:43]} 13. Re1 {[%emt 0:11:59]} Qd7 {[%emt 0:08:28]} 14. Bg5 {[%emt 0:15:20]} Be7 {[%emt 0:06:27]} 15. Bxe7 {[%emt 0:05:08]} Qxe7 {[%emt 0:01:19]} 16. Qe2 {[%emt 0:05:10]} O-O-O {[%emt 0:02:27]} 17. Rad1 {[%emt 0:01:43]} Rhe8 {[%emt 0:04:16]} 18. Qc2 {[%emt 0:02:01]} Qf8 {[%emt 0:03:48]} 19. d4 {[%emt 0:00:44]} f5 {[%emt 0:01:55]} 20. Nc5 {[%emt 0:00:25]} Qf6 {[%emt 0:04:18]} 21. Nxe5 {[%emt 0:00:29]} Nxe5 {[%emt 0:00:41]} 22. Rxe5 {[%emt 0:00:34]} Rxe5 {[%emt 0:01:18]} 23. dxe5 {[%emt 0:00:04]} Rxd1+ {[%emt 0:01:35]} 24. Qxd1 {[%emt 0:00:04]} Qxe5 {[%emt 0:00:15]} 25. Nxa6 {[%emt 0:01:22]} c5 {[%emt 0:01:21]} 26. Nxc5 {[%emt 0:00:32]} Qxc5 {[%emt 0:00:17]} 27. Be6+ {[%emt 0:00:23]} Kc7 {[%emt 0:00:18]} 28. Qf3 {[%emt 0:00:35]} Nc4 {[%emt 0:00:30]} 29. Bxc4 {[%emt 0:00:30]} Qxc4 {[%emt 0:00:08]} 30. Qg3+ {[%emt 0:00:30]} Kc6 {[%emt 0:00:29]} 31. Qb8 {[%emt 0:00:32]} Qf7 {[%emt 0:02:08]} 32. Qc8+ {[%emt 0:00:28]} Qc7 {[%emt 0:00:13]} 33. Qa6+ {[%emt 0:00:29]} Kc5 {[%emt 0:00:43]} 34. Qa3+ {[%emt 0:00:23]} Kb6 {[%emt 0:00:08]} 35. Qb4 {[%emt 0:00:38]} Qc5 {[%emt 0:00:41]} 36. Qf4 {[%emt 0:00:28]} Kc6 {[%emt 0:00:40]} 37. Qb8 {[%emt 0:00:32]} Qd6 {[%emt 0:01:26]} 38. Qc8+ {[%emt 0:00:31]} Qc7 {[%emt 0:00:21]} 39. Qe6+ {[%emt 0:00:30]} Qd6 {[%emt 0:00:27]} 40. Qc8+ {[%emt 0:00:00]} Kb6 {[%emt 0:00:00]} 41. Qg8 {[%emt 0:02:22]} Qd1+ {[%emt 0:02:38]} 42. Kh2 {[%emt 0:01:55]} Qd7 {[%emt 0:05:37]} 43. Qb8+ {[%emt 0:03:47]} Kc5 {[%emt 0:02:57]} 44. Qe5+ {[%emt 0:02:46]} Kc6 {[%emt 0:00:47]} 45. Qe3 {[%emt 0:08:14]} Qd5 {[%emt 0:07:28]} 46. Qa7 {[%emt 0:05:54]} Qe5+ {[%emt 0:01:07]} 47. Kg1 {[%emt 0:00:52]} Kd5 {[%emt 0:03:12]} 48. Qb7+ {[%emt 0:03:22]} Kc4 {[%emt 0:02:19]} 49. Qc6+ {[%emt 0:02:27]} Kd3 {[%emt 0:00:40]} 50. a4 {[%emt 0:02:51]} Be8 {[%emt 0:05:53]} 51. Qf3+ {[%emt 0:01:14]} Kc2 {[%emt 0:00:09]} 52. axb5 {[%emt 0:00:42]} Bxb5 {[%emt 0:00:44]} 53. Qb7 {[%emt 0:00:35]} h6 {[%emt 0:04:09]} 54. Qb6 {[%emt 0:00:27]} f4 {[%emt 0:02:03]} 55. b4 {[%emt 0:00:33]} Kxc3 {[%emt 0:00:31]} 56. Qa5 {[%emt 0:00:30]} Kc4 {[%emt 0:01:02]} 57. Qa2+ {[%emt 0:00:30]} Kxb4 {[%emt 0:00:11]} 58. Qb1+ {[%emt 0:00:11]} Ka5 {[%emt 0:00:21]} 59. Qa2+ {[%emt 0:00:32]} Kb6 {[%emt 0:00:14]} 60. Qd2 {[%emt 0:00:34]} Qf6 {[%emt 0:01:47]} 61. Kh2 {[%emt 0:00:40]} g5 {[%emt 0:01:13]} 62. g3 {[%emt 0:00:30]} h5 {[%emt 0:02:16]} 63. h4 {[%emt 0:00:34]} fxg3+ {[%emt 0:00:59]} 64. fxg3 {[%emt 0:00:25]} gxh4 {[%emt 0:00:23]} 65. Qe3+ {[%emt 0:00:22]} Ka6 {[%emt 0:01:34]} 66. Qa3+ {[%emt 0:00:33]} Kb7 {[%emt 0:00:13]} 67. gxh4 {[%emt 0:00:29]} Qxh4+ {[%emt 0:00:10]} 68. Kg2 {[%emt 0:00:27]} Bc6+ {[%emt 0:00:10]} 69. Kf1 {[%emt 0:00:42]} Qh1+ {[%emt 0:00:31]} 70. Kf2 {[%emt 0:00:25]} Qg2+ {[%emt 0:00:06]} 71. Ke1 {[%emt 0:00:22]} Qe4+ {[%emt 0:01:37]} 72. Kf2 {[%emt 0:00:43]} h4 {[%emt 0:00:44]} 73. Qb2+ {[%emt 0:00:31]} Kc7 {[%emt 0:00:17]} 74. Qg7+ {[%emt 0:00:23]} Kb6 {[%emt 0:00:08]} 75. Qb2+ {[%emt 0:00:33]} Kc5 {[%emt 0:00:16]} 76. Qc3+ {[%emt 0:00:33]} Kd5 {[%emt 0:00:22]} 77. Qa5+ {[%emt 0:00:29]} Ke6 {[%emt 0:00:28]} 78. Qa2+ {[%emt 0:00:19]} Ke5 {[%emt 0:00:54]} 79. Qa5+ {[%emt 0:00:28]} Kf4 {[%emt 0:00:35]} 80. Qc7+ {[%emt 0:00:32]} Kg4 {[%emt 0:01:10]} 81. Qg7+ {[%emt 0:00:28]} Kh3 {[%emt 0:00:46]} 82. Kg1 {[%emt 0:00:42]} Qg2+ {[%emt 0:00:35]} 83. Qxg2+ {[%emt 0:00:07]} Bxg2 {[%emt 0:00:06]} 84. Kf2 {[%emt 0:00:02]} Bc6 0-1